[Event "Leca Open 2022"]
[Site "Leca da Palmeira"]
[Date "2022.08.04"]
[Round "8.8"]
[White "Padeiro, Jose"]
[Black "Akhvlediani, Irakli"]
[Result "1/2-1/2"]
[ECO "A06"]
[WhiteElo "2216"]
[BlackElo "2429"]
[Annotator "TA"]
[PlyCount "120"]
[EventDate "2022.08.02"]
[EventType "swiss"]
[EventCountry "POR"]
[SourceTitle "playchess.com"]
[Source "ChessBase"]
[SourceQuality "1"]
[TimeControl "5400+30"]

{[%evp 14,120,0,0,12,8,27,4,33,11,50,25,42,38,43,20,33,19,20,27,21,15,12,15,18,16,9,9,19,0,0,0,9,8,42,0,52,0,0,0,23,22,33,24,33,42,33,37,41,27,20,21,26,27,53,24,43,17,16,20,31,34,38,3,35,14,14,14,27,27,38,14,14,14,14,14,14,14,14,14,14,14,14,14,14,14,14,14,14,0,14,0,14,14,14,14,14,0,14,0,14,14,14,14,14,14,14,0,14]} 1. Nf3 Nf6 2. c4 e6 3. b3 d5 4. Bb2 c5 5. e3 Nc6 {[%cal Bb8c6,Bc6e5,Be5g4][%mdl 32]} 6. cxd5 exd5 7. Bb5 Bd6 8. O-O O-O {A13: English Opening: 1...e6.} 9. d4 cxd4 10. Nxd4 Ne5 11. Be2 {[#]} Ne4 $146 ({Predecessor:} 11... Re8 12. Nd2 a6 13. Rc1 Qe7 14. Qc2 Bd7 15. Nf5 Bxf5 16. Qxf5 Qe6 17. Qxe6 fxe6 {½-½ (31) Tsyhanchuk,S (2359)-Grishchenko,S (2411) Stockholm 2019}) 12. Nf3 Ng4 13. Qd4 {[%csl Gb2][%cal Rd4g7] [#]} Ngf6 14. Ba3 Bf5 15. Bxd6 Qxd6 16. Nbd2 Qa3 17. Qe5 Nxd2 18. Nxd2 {[%cal Bf3d2,Bd2b1,Bb1a3,Ba3c2,Bc2d4][%mdl 32]} Bg6 19. Nb1 Qc5 20. Qb2 Rac8 21. Bf3 Qb4 22. Na3 {Inhibits Rc2.} a6 23. Rac1 h6 24. Rfd1 (24. Nc2 $5 {[%cal Rc2b4]} Qd6 25. Nd4 $14) 24... Kh7 ({Better is} 24... Rxc1 $11 25. Rxc1 Be4) 25. h3 ({Don't play} 25. Bxd5 Rxc1 26. Qxc1 Nxd5 27. Rxd5 {[#]} Rc8 $1 $17) ({White should try} 25. Nc2 $14 Qd6 26. Nd4) 25... Rxc1 $11 26. Qxc1 Bf5 27. Nc2 Qa5 28. Nd4 Rc8 29. Qd2 Qxd2 30. Rxd2 Rc1+ 31. Rd1 Rxd1+ 32. Bxd1 {[%mdl 4096] Endgame KBN-KBN} Kg6 33. f3 Bb1 34. a3 Nd7 35. Kf2 Kf6 36. Ke2 Ke7 37. Kd2 Kd6 38. g4 Ne5 39. f4 Nc6 40. Kc3 Ne7 41. h4 Be4 42. g5 f6 {The position is equal.} 43. gxh6 gxh6 44. Bh5 a5 45. b4 axb4+ 46. axb4 Nf5 47. Nxf5+ Bxf5 {KB-KB} 48. Bf3 b6 49. Kd4 Be6 50. Bh5 Bf5 51. Bf3 Be6 52. Bh5 Kc6 53. Be2 Bf7 54. Bf1 Bg6 55. Be2 Be4 56. Bf1 Bf3 57. Bd3 Kd6 58. Ba6 Be4 59. Bf1 Bf3 60. Ba6 Be4 {Weighted Error Value: White=0.09 (flawless) /Black=0.08 (flawless)} 1/2-1/2

[Event "Leca Open 2022"]
[Site "Leca da Palmeira"]
[Date "2022.08.04"]
[Round "8.9"]
[White "Buscara, Sevan"]
[Black "Balje, Jan"]
[Result "1-0"]
[ECO "D02"]
[WhiteElo "2404"]
[BlackElo "2190"]
[Annotator "TA"]
[PlyCount "89"]
[EventDate "2022.08.02"]
[EventType "swiss"]
[EventCountry "POR"]
[SourceTitle "playchess.com"]
[Source "ChessBase"]
[SourceQuality "1"]
[TimeControl "5400+30"]

{[%evp 9,88,2,5,12,8,0,0,-10,22,41,137,125,168,84,149,161,150,132,120,-50,-62,-62,-41,-51,31,29,23,-49,-63,-73,-68,-68,-40,-84,-84,-162,-160,-202,-187,-182,-166,-168,-79,-85,-79,-72,0,-552,-539,-628,-525,-858,-631,-628,-615,-636,-610,-311,-625,-655,-645,-681,-681,-811,-811,-793,-765,-797,-791,-798,-772,-729,-682,-661,-644,-698,-677,-649,-621,-601,29999]} 1. d4 {[%emt 0:02:11]} d5 {[%emt 0:00:16]} 2. Nf3 {[%emt 0:00:29]} Nf6 {[%emt 0:00:27]} 3. Bf4 {[%emt 0:00:15]} c5 {[%emt 0:00:21]} 4. e3 {[%emt 0:00:07]} Nc6 {[%emt 0:00:06]} 5. Nbd2 {[%emt 0:00:10]} Qb6 {[%emt 0:01:44][%csl LRb2,LRd4][%cal Rc5d4]} 6. dxc5 {[%emt 0:00:18] D02: 1 d4 d5 2 Nf3 sidelines, including 2...Nf6 3 g3 and 2...Nf6 3 Bf4.} Qxb2 {[%emt 0:00:33]} 7. Rb1 {[%emt 0:00:45]} Qc3 {[%emt 0:01:26]} 8. Bb5 {[%emt 0:03:06] The position is equal.} Qxc5 {[%emt 0:21:09] 8...g6 gains popularity.} 9. O-O {[%emt 0:01:15]} Bd7 {[%emt 0:03:19]} (9... e6 $14) 10. c4 $16 {[%emt 0:04:36]} e6 {[%emt 0:09:13]} 11. Ba4 {[%emt 0:04:37]} (11. cxd5 $1 $18 exd5 12. Ba4) 11... b6 {[%emt 0:09:42]} (11... Nd8 $142) 12. Rc1 {[%emt 0:10:04] [#]} d4 $146 {[%emt 0:05:29]} ({Predecessor:} 12... Rc8 13. cxd5 Qxd5 14. Ne5 Bb4 15. Nxd7 Qxd7 16. Nf3 Qb7 17. Bxc6+ Rxc6 18. Qa4 Bc5 19. Rxc5 bxc5 {1-0 (44) Gorodetzky,D (2461)-Pop,A (2276) Arad 2019}) 13. exd4 {[%emt 0:06:29]} Nxd4 {[%emt 0:04:50]} 14. Nxd4 $2 {[%emt 0:04:36]} (14. Bxd7+ $1 $16 Nxd7 15. Nxd4 Qxd4 16. Qf3) 14... Qxd4 $15 {[%emt 0:00:14]} 15. Qf3 {[%emt 0:04:32]} Rd8 {[%emt 0:00:25]} 16. Be3 {[%emt 0:01:35]} Qb2 {[%emt 0:16:06]} (16... Qe5 $15 17. Bxd7+ Nxd7) 17. Bxd7+ $1 $14 {[%emt 0:08:36]} Nxd7 {[%emt 0:00:12]} 18. Bg5 {[%emt 0:04:39]} ({Better is} 18. Nb3 $11) 18... Be7 $15 {[%emt 0:04:16]} (18... Qxa2 $2 19. Ra1 Ne5 20. Qb7 $18) 19. Bxe7 {[%emt 0:01:47]} Kxe7 {[%emt 0:00:02]} 20. Nb3 {[%emt 0:01:18]} Rhe8 {[%emt 0:10:55]} (20... Qxa2 $2 21. Ra1 Qb2 22. Rxa7 $18) 21. Qb7 {[%emt 0:01:48]} Qxa2 {[%emt 0:00:32]} 22. Nd4 {[%emt 0:02:21]} (22. c5 $17 {is a better defense.} Kf8 23. c6) 22... Kf8 $19 {[%emt 0:00:07]} 23. Ra1 {[%emt 0:04:26]} Nc5 {[%emt 0:01:44] aiming for ...Qxa1.} 24. Qf3 {[%emt 0:05:04]} Qxc4 {[%emt 0:00:28]} 25. Nc6 {[%emt 0:00:34] [#] Black must now prevent Ne5.} Rd3 {[%emt 0:03:12]} (25... Rd5 $1 $19 {And now ...Nb3 would win.} 26. Rxa7 Rd7) 26. Qh5 $17 {[%emt 0:00:44] Strongly threatening Ne5.} f6 {[%emt 0:04:10] Inhibits Ne5.} 27. Qxh7 {[%emt 0:06:32] [#]} a5 {[%emt 0:00:14]} (27... e5 $1 $17 {Hoping for ...a5.} 28. Rxa7 Rd7) 28. f4 $2 {[%emt 0:06:51][%mdl 8192]} (28. Qh8+ $11 {and White has nothing to worry.} Kf7 29. Qh5+ Kf8 30. Qh8+ Kf7 31. Qh5+ Kf8 32. Qh8+) 28... Qd5 $19 {[%emt 0:01:01]} 29. Rac1 {[%emt 0:05:24]} Rd2 {[%emt 0:00:28][%csl Gd2][%cal Rd5g2]} ({Worse is} 29... Qxc6 30. Qxd3 Qxg2+ 31. Kxg2 $17) 30. Qh8+ {[%emt 0:01:06]} Kf7 {[%emt 0:00:06][%csl Gd2][%cal Rd5g2]} 31. Ne5+ {[%emt 0:00:15]} fxe5 {[%emt 0:01:31]} 32. fxe5+ {[%emt 0:00:03]} Ke7 {[%emt 0:00:24][%csl Gd2][%cal Rd5g2,Bf7e7,Be7d8,Bd8d7][%mdl 32]} 33. Qxg7+ {[%emt 0:02:32]} Kd8 {[%emt 0:00:01]} 34. Qg5+ {[%emt 0:00:23]} Re7 {[%emt 0:00:22]} 35. h4 {[%emt 0:00:31]} Kd7 {[%emt 0:00:17]} 36. h5 {[%emt 0:01:07]} Rh7 {[%emt 0:00:26][%cal Oh7h5]} 37. Rf3 {[%emt 0:02:03]} Rd1+ {[%emt 0:02:08]} 38. Rxd1 {[%emt 0:00:11]} Qxd1+ {[%emt 0:00:01]} 39. Kh2 {[%emt 0:00:10]} Qe1 {[%emt 0:01:20]} 40. h6 {[%emt 0:01:09]} Qe4 {[%emt 0:00:02]} 41. Rf4 {[%emt 0:00:38]} Qd3 {[%emt 0:00:35]} ({Stronger than} 41... Qa8 42. Qg6 Rh8 43. Rd4+ Kc6 44. Rd6+ Kb7 45. Qg7+ Ka6 46. Qc7 Rxh6+ 47. Kg1 $17) 42. Qh5 {[%emt 0:02:25]} Kc6 {[%emt 0:00:29]} 43. Qe8+ {[%emt 0:00:53]} Kd5 {[%emt 0:00:46]} 44. Qf8 {[%emt 0:01:40][%csl Ge5][%cal Rf8d6]} Qg6 $4 {[%emt 0:00:42][%mdl 8192]} (44... Kxe5 $19 45. Rh4 Kd5 46. Rh5+ Kc4 47. Rh4+ Kb5 48. Qe8+ Qd7 49. Qxd7+ Nxd7) 45. Qd6# {[%emt 0:00:06] Both players deserved the win here.  Weighted Error Value: White=0.49/Black=0.30} 1-0

[Event "Leca Open 2022"]
[Site "Leca da Palmeira"]
[Date "2022.08.04"]
[Round "8.10"]
[White "Jansen, Bob"]
[Black "Touzane, Olivier"]
[Result "0-1"]
[ECO "B20"]
[WhiteElo "2162"]
[BlackElo "2266"]
[Annotator "TA"]
[PlyCount "68"]
[EventDate "2022.08.02"]
[EventType "swiss"]
[EventCountry "POR"]
[SourceTitle "playchess.com"]
[Source "ChessBase"]
[SourceQuality "1"]
[TimeControl "5400+30"]

{[%evp 10,68,-7,-8,0,0,26,28,33,0,26,21,41,23,141,41,134,54,121,93,139,47,39,58,104,56,138,107,145,83,89,81,81,0,0,-4,112,110,100,62,62,-8,0,0,0,-21,8,20,237,69,222,-152,-39,-1026,0,0,100,-922,-876,-29986,-5381]} 1. e4 {[%emt 0:01:35]} c5 {[%emt 0:00:08]} 2. d3 {[%emt 0:00:04]} g6 {[%emt 0:01:09]} 3. f4 Bg7 {[%emt 0:00:37]} 4. Nf3 {[%emt 0:00:22]} Nc6 {[%emt 0:00:07]} 5. Be2 {[%emt 0:00:04]} d6 {[%emt 0:00:45]} 6. O-O {[%emt 0:00:09]} Rb8 {[%emt 0:04:54] B21: Sicilian: 2 f4 and Morra Gambit.} 7. c3 {[%emt 0:04:37] [#]} a6 $146 {[%emt 0:00:00]} ({Predecessor:} 7... Nf6 8. Qe1 O-O 9. Nbd2 b5 10. a3 Nd7 11. Ng5 e6 12. Ndf3 Nb6 13. g4 f6 {1-0 (48) Abergel,T (2387)-Bauer,C (2607) Chartres 2022}) 8. Qe1 {[%emt 0:11:13]} Nf6 {[%emt 0:08:03] White has an edge.} 9. Kh1 {[%emt 0:05:18]} c4 {[%emt 0:04:28]} 10. Be3 b6 {[%emt 0:08:20]} 11. Nbd2 {[%emt 0:04:03]} Bb7 {[%emt 0:03:03]} (11... cxd3 $11 {keeps the balance.} 12. Bxd3 O-O) 12. h3 {[%emt 0:21:57]} (12. Nxc4 $16 b5 13. Nb6) 12... Na5 {[%emt 0:15:18]} (12... cxd3 $14 13. Bxd3 O-O) 13. a4 {[%emt 0:00:30]} (13. Qf2 $1 $16 Nd7 14. dxc4) 13... e6 {[%emt 0:00:30]} (13... b5 $14) 14. f5 {[%emt 0:00:30]} O-O {[%emt 0:00:30]} (14... exf5 $142 15. exf5 O-O) 15. dxc4 {[%emt 0:00:30]} (15. fxg6 $16 {Strongly threatening Ng5.} fxg6 16. Ng5 cxd3 17. Bxd3) 15... exf5 $14 {[%emt 0:00:30]} 16. exf5 {[%emt 0:00:30]} Qd7 {[%emt 0:22:31]} (16... Re8 $14 17. Bg1 Nc6) 17. Qf2 {[%emt 0:14:09]} ({White should try} 17. Bd3 $16) 17... Rfe8 {[%emt 0:00:30]} (17... Qxf5 $14 18. b4 (18. Bxb6 Ne4 $14) 18... Rfe8) 18. Bd3 {[%emt 0:12:47]} d5 {[%emt 0:02:57]} 19. cxd5 {[%emt 0:04:05]} (19. Bxb6 $6 Nxc4 20. fxg6 (20. Nxc4 dxc4 21. Bc2 Bxf3 $11) 20... hxg6 21. Bxc4 (21. Nxc4 $2 dxc4 22. Bxc4 Bxf3 $17) 21... dxc4 $11) (19. fxg6 $142 hxg6 20. Rad1 (20. Bxb6 Nxc4 21. Bxc4 dxc4 $14)) 19... Nxd5 $16 {[%emt 0:01:44]} 20. Bd4 {[%emt 0:01:32] Black must now prevent Bxg7.} Nf4 {[%emt 0:00:40]} 21. Bc2 {[%emt 0:10:29]} (21. Bxg7 $1 $16 {[%cal Og7d4] Hoping for Bd4!} Qxd3 22. Bh6 (22. Be5 Rxe5 23. Nxe5 Qxh3+ 24. Kg1 Nxg2 $11)) 21... Re2 {[%emt 0:05:38]} 22. Qg3 {[%emt 0:03:11]} Bh6 {[%emt 0:03:30]} (22... Bxd4 $11 23. Qxf4 (23. cxd4 Qc7 $15) 23... Be5 $1) 23. Qh4 {[%emt 0:00:30]} Nh5 {[%emt 0:00:58]} 24. Rf2 {[%emt 0:01:06]} Rbe8 {[%emt 0:01:28] ...Bxd2 is the strong threat.} 25. Raf1 {[%emt 0:00:13]} (25. Bxb6 $2 Bxd2 26. Rxe2 (26. Bxa5 $2 Be1 $19) 26... Rxe2 27. fxg6 (27. Bxa5 $2 Bxf3 28. Rg1 Bf4 $19) 27... hxg6 $1 $19) (25. Rd1 $14) 25... Bf4 {[%emt 0:02:10]} 26. Rxe2 Rxe2 27. Bd1 {[%emt 0:03:06][%cal Oh1g1]} Qd6 {[%emt 0:10:34]} 28. fxg6 {[%emt 0:00:24]} fxg6 29. b4 $2 {[%emt 0:01:33]} (29. Bxe2 $18 Ng3+ 30. Qxg3 $1 (30. Kg1 Nxe2+ 31. Kh1 Ng3+ 32. Kg1 Ne2+ 33. Kh1 Ng3+ 34. Kg1 Ne2+ $11) 30... Bxg3 31. b4) 29... Ng3+ $2 {[%emt 0:02:19] [#]} (29... Bxd2 $2 30. Bxe2 Ng3+ 31. Qxg3 $3 {[%mdl 512]} Qxg3 32. bxa5 $18) (29... Rxd2 $14 30. Nxd2 Ng3+ 31. Qxg3 (31. Kg1 g5 $11) 31... Bxg3 32. bxa5 Bd5) 30. Kg1 $2 {[%emt 0:00:00]} ({White has to play} 30. Qxg3 $1 $18 {[%mdl 512]} Bxg3 31. Bxe2) 30... Rxd2 {[%emt 0:00:53] Chess con chili. 0x0.00198a4f8208dp-1022s more active pieces.} ({Inferior is} 30... Bxd2 31. bxa5 Nf5 32. Bxe2 $1 $11) ({Better is} 30... Nf5 $1 $17 31. Bxe2 Nxh4 32. Nxh4 Bxd2 33. bxa5 Bxc3 $1 {[%mdl 512]} 34. Bc4+ Bd5 35. Bxd5+ Qxd5 36. Bxc3 Qc5+ 37. Kh1 Qxc3 38. axb6 Qb4) 31. bxa5 $2 {[%emt 0:00:55][%mdl 8192]} (31. Nxd2 $15 g5 32. Qxg3 $1 Bxg3 33. bxa5) 31... g5 $2 $40 {[%emt 0:00:55][%mdl 128] Black has some attack.} (31... Bxf3 $19 {[%csl Gf3][%cal Rd2g2]} 32. Bb3+ Bd5) 32. Bb3+ {[%emt 0:00:23]} Kf8 {[%emt 0:00:13] [#]} (32... Bd5 $11 33. Bxd5+ Qxd5) 33. Nxd2 $4 {[%emt 0:00:41][%mdl 8192]} gxh4 $19 {[%emt 0:00:46]} 34. Be3 {[%emt 0:00:16]} Nxf1 {Weighted Error Value: White=1.06/Black=0.72} (34... Ne2+ $142 35. Kf2 Qd3 36. Bxf4 Nxf4 37. Kg1 Qxd2 38. Rxf4+ Qxf4 39. Bd1 Qc1 40. Kf2 Qxd1 41. Ke3 bxa5 42. c4 Bxg2 43. c5 Ke7 44. c6 Bxc6 45. Kf2 Qd2+ 46. Kf1 Bh1 47. Kg1 Qg2#) 0-1

[Event "Leca Open 2022"]
[Site "Leca da Palmeira"]
[Date "2022.08.04"]
[Round "8.11"]
[White "Das, Sayantan"]
[Black "Modi, Shyam Jagdish"]
[Result "1-0"]
[ECO "B44"]
[WhiteElo "2449"]
[BlackElo "2138"]
[Annotator "TA"]
[PlyCount "53"]
[EventDate "2022.08.02"]
[EventType "swiss"]
[EventCountry "POR"]
[SourceTitle "playchess.com"]
[Source "ChessBase"]
[SourceQuality "1"]
[TimeControl "5400+30"]

{[%evp 9,53,17,16,12,12,10,17,10,18,6,24,19,31,27,25,16,40,39,45,41,46,36,30,35,154,150,281,287,281,279,312,311,343,343,313,275,277,283,352,351,339,340,371,359,377,356]} 1. e4 c5 2. Nf3 e6 3. d4 cxd4 4. Nxd4 Nc6 5. Bf4 d6 6. Nxc6 {B44: Sicilian: Taimanov: 5 Nb5.} bxc6 7. c4 e5 8. Be3 {The position is equal.} Nf6 9. Nc3 Be7 (9... Ng4 $5 {[%cal Rg4e3]}) 10. Be2 Be6 11. Qa4 {[#]} Qc7 $146 ({Predecessor:} 11... Qd7 12. O-O O-O 13. Rfd1 Qb7 14. b4 a6 15. Rab1 Ng4 16. Bxg4 Bxg4 17. f3 Bd7 18. Qb3 Rab8 {1-0 (50) Bedard,E (1651)-Thomas,G (1974) ICCF email 2015}) 12. Nd5 Nxd5 (12... Qb7 {keeps more tension.} 13. Nxe7 Qxb2 14. O-O Qxe2 15. Nf5 Bxf5 16. Rfe1 Qh5) 13. cxd5 (13. exd5 Bd7 $11) 13... Bd7 14. dxc6 Qxc6 15. Qxc6 Bxc6 16. f3 $36 {[%mdl 2048] White has good play.} O-O (16... a5 $14) 17. Rc1 $16 Bd7 (17... Be8 $16) 18. Rc7 $1 $18 {[%csl LRa7,LRd7]} Rfd8 {[#]} 19. Ba6 $1 {[%cal Be2a6,Ba6b7,Bb7a8,Ba8d5][%mdl 32] And now Bb7 would win.} d5 {[#]} 20. Bb7 $1 (20. exd5 Bd6 21. Rc2 (21. Rxa7 $2 Rxa7 22. Bxa7 Ra8 $19) 21... Bf5 $16) (20. Rxa7 $2 Rxa7 21. Bxa7 Ra8 $19) 20... d4 21. Bxa8 dxe3 22. Bd5 ({Stronger than} 22. Rxa7 Bb4+ 23. Kd1 (23. Ke2 $2 {leads to mate.} Bb5+ 24. Kxe3 Bc5#) 23... e2+ 24. Kc2 (24. Kxe2 $2 Bb5+ 25. Kf2 Bc5+ 26. Kg3 Bxa7 $19) 24... Be8 $17) 22... Bb4+ 23. Ke2 {Hoping for Rhc1.} Bd2 {Prevents Rhc1.} 24. Rd1 a5 25. b3 Bb5+ 26. Bc4 Be8 27. Rc5 {Weighted Error Value: White=0.02 (flawless) /Black=0.30} 1-0

[Event "Leca Open 2022"]
[Site "Leca da Palmeira"]
[Date "2022.08.04"]
[Round "8.12"]
[White "Umetsubo, Cesar Hidemitsu"]
[Black "Verma, Aditya"]
[Result "1-0"]
[ECO "D00"]
[WhiteElo "2405"]
[BlackElo "2114"]
[Annotator "TA"]
[PlyCount "61"]
[EventDate "2022.08.02"]
[EventType "swiss"]
[EventCountry "POR"]
[SourceTitle "playchess.com"]
[Source "ChessBase"]
[SourceQuality "1"]
[TimeControl "5400+30"]

{[%evp 18,61,35,37,18,0,78,0,102,0,5,3,0,0,0,-11,7,10,0,0,-2,-19,-16,-41,-16,-32,-28,-13,-17,-29,-29,-375,334,324,320,277,860,969,922,973,29987,29988,29988,29989,29990,29990]} 1. d4 {[%emt 0:06:15]} d5 {[%emt 0:00:04]} 2. Bf4 {[%emt 0:00:11]} Nf6 {[%emt 0:00:05]} 3. e3 {[%emt 0:00:05]} c5 {[%emt 0:00:25]} 4. c3 {[%emt 0:00:25]} Nc6 {[%emt 0:00:15]} 5. Nd2 {[%emt 0:00:05]} e6 {[%emt 0:01:34]} 6. Ngf3 {[%emt 0:00:43]} Bd6 {[%emt 0:00:17]} 7. Bg3 {[%emt 0:00:18]} O-O {[%emt 0:00:26]} 8. Bd3 {[%emt 0:00:04]} Re8 {[%emt 0:01:23]} 9. Ne5 {[%emt 0:00:23]} Bxe5 {[%emt 0:05:49]} 10. dxe5 {[%emt 0:00:02]} Nd7 {[%emt 0:00:24] D02: 1 d4 d5 2 Nf3 sidelines, including 2...Nf6 3 g3 and 2...Nf6 3 Bf4.} 11. f4 {[%emt 0:01:03]} (11. Qh5 g6 12. Qd1 Ndxe5 $17) 11... Nf8 {[%emt 0:01:17]} (11... c4 $11 {remains equal.} 12. Be2 Qb6) 12. O-O {[%emt 0:13:46] [#]} (12. Qf3 $16) 12... Bd7 $146 {[%emt 0:14:29]} (12... c4 $11 {keeps the balance.} 13. Bc2 Qb6) ({Predecessor:} 12... c4 13. Bc2 Qb6 14. Qc1 Qxe3+ 15. Kh1 Qb6 16. Bf2 Qc7 17. Nf3 b5 18. a3 Ng6 {½-½ (32) Nurmi,R (1784)-Perry,W (1972) ICCF email 2016}) 13. Qh5 {[%emt 0:04:26] White is more active.} ({White should try} 13. e4 $16) 13... c4 {[%emt 0:10:48]} 14. Bc2 {[%emt 0:00:14] Threatening Bf2.} Qb6 {[%emt 0:00:08][%csl LRb2,LRe3]} 15. Nf3 {[%emt 0:00:52]} Qxb2 {[%emt 0:04:15]} 16. Rac1 {[%emt 0:00:24] [#] Hoping for Ng5.} Ne7 {[%emt 0:05:41]} 17. Ng5 {[%emt 0:16:35][%csl LRf7,LRh7][%cal Rc2h7]} Neg6 {[%emt 0:02:03]} 18. Qe2 {[%emt 0:12:46][%cal Og5f7] aiming for Nxf7!} Qa3 $1 {[%emt 0:03:08]} (18... Qxa2 {[#]} 19. Nxf7 $1 Ba4 20. Nd6 $16) 19. h4 {[%emt 0:02:38]} h6 {[%emt 0:07:16]} (19... Qxa2 $2 20. Ra1 (20. h5 Qa3 $18) 20... Qb2 21. Rfb1 (21. h5 Qxc3 22. hxg6 hxg6 $18) 21... Qxc3 22. Be1 Qxa1 23. Rxa1 $18) 20. Nf3 {[%emt 0:01:12]} b5 {[%emt 0:00:31]} (20... Qxa2 $2 21. Ra1 Qb2 22. Rfb1 Qxc3 23. Be1 Qxa1 24. Rxa1 $18) 21. h5 {[%emt 0:02:19]} Ne7 {[%emt 0:00:21]} 22. Bh4 {[%emt 0:00:15]} b4 {[%emt 0:08:13]} 23. Nd4 {[%emt 0:04:14] Qg4 is the strong threat.} Nf5 {[%emt 0:02:01]} (23... bxc3 $2 24. Qg4 $18) 24. Bf6 {[%emt 0:01:43][%mdl 8192]} bxc3 $4 {[%emt 0:05:06][%mdl 8192]} (24... gxf6 $19 {and all is fine.} 25. Qg4+ Kh8 26. exf6 Nh7 27. Bxf5 (27. Nxf5 $2 Rg8 $19) 27... Rg8) 25. Qg4 $18 {[%emt 0:00:48][%cal Rd4f5]} g6 {[%emt 0:00:20]} 26. Qh3 {[%emt 0:03:16]} Kh7 {[%emt 0:04:22]} (26... Qxa2 {leads to mate.} 27. Nxf5 exf5 28. hxg6 fxg6 29. Qxh6 Ne6 30. Qxg6+ Kf8 31. Rf3) (26... Nxd4 $2 27. exd4 Kh7 28. Bb1 $18) (26... Re7 27. Bxf5 exf5 28. hxg6 fxg6) 27. g4 {[%emt 0:01:14][%cal Bg2g4,Bg4g5][%mdl 32]} Nxd4 {[%emt 0:01:05]} 28. exd4 {[%emt 0:04:08] White wants to mate with Kf2.} Ba4 {[%emt 0:01:10]} 29. g5 {[%emt 0:00:26] White mates.} Kg8 {[%emt 0:02:46]} 30. hxg6 {[%emt 0:02:55]} Nxg6 {[%emt 0:00:11]} 31. Bxg6 {[%emt 0:03:39] Weighted Error Value: White=0.44/Black=0.65} 1-0

[Event "Leca Open 2022"]
[Site "Leca da Palmeira"]
[Date "2022.08.04"]
[Round "8.13"]
[White "Goncalves, Samuel Jesus P"]
[Black "Pierrot, Facundo"]
[Result "1/2-1/2"]
[ECO "D07"]
[WhiteElo "1957"]
[BlackElo "2371"]
[Annotator "TA"]
[PlyCount "81"]
[EventDate "2022.08.02"]
[EventType "swiss"]
[EventCountry "POR"]
[SourceTitle "playchess.com"]
[Source "ChessBase"]
[SourceQuality "1"]
[TimeControl "5400+30"]

{[%evp 11,81,16,23,0,0,-9,-7,-21,-10,-21,-18,-20,0,0,20,-33,-29,-41,-30,-95,-110,-129,-126,-127,-137,-157,-34,-53,0,0,0,0,0,0,0,0,0,0,0,0,7,0,46,58,41,50,65,45,58,31,37,22,39,26,56,25,31,27,36,24,96,39,27,0,0,0,0,0,0,0,0,0]} 1. d4 {[%emt 0:00:03]} d5 {[%emt 0:00:10]} 2. c4 {[%emt 0:00:06]} Nc6 {[%emt 0:00:10]} 3. Nf3 {[%emt 0:08:13]} Bg4 {[%emt 0:00:18]} 4. e3 {[%emt 0:09:57]} e6 {[%emt 0:01:22]} 5. Nc3 {[%emt 0:01:22]} Nf6 {[%emt 0:00:11]} 6. cxd5 {[%emt 0:02:07]} exd5 {[%emt 0:00:15]} 7. Be2 {[%emt 0:01:17] D07: Queen's Gambit: Chigorin Defence.} Bd6 {[%emt 0:00:44]} 8. a3 {[%emt 0:02:39]} O-O {[%emt 0:01:22]} 9. b4 {[%emt 0:00:42]} Re8 {[%emt 0:00:56]} 10. O-O {[%emt 0:00:56]} a6 {[%emt 0:04:21]} 11. Qc2 {[%emt 0:03:11] [#]} Qd7 $146 {[%emt 0:05:52]} ({Predecessor:} 11... Ne4 12. Nxd5 Bxh2+ 13. Nxh2 Bxe2 14. Nxc7 Bxf1 15. Nxe8 Bxg2 16. Nxg7 Kxg7 17. Kxg2 {1-0 (39) Hungaski,R (2438)-Schroer,J (2361) ICC INT 2010}) 12. Bb2 {[%emt 0:08:18]} Re6 {[%emt 0:12:09]} 13. b5 {[%emt 0:11:06]} (13. h3 $11 Bh5 14. Bd3) 13... axb5 $15 {[%emt 0:00:22]} 14. Nxb5 {[%emt 0:00:13]} Ne4 {[%emt 0:00:50]} 15. Ne5 {[%emt 0:01:27]} (15. Nxd6 $11 Rxd6 16. Rac1) 15... Nxe5 $17 {[%emt 0:00:23]} 16. dxe5 {[%emt 0:02:09]} Bxe2 {[%emt 0:00:07]} ({Resist} 16... Bxe5 17. Bxg4 Qxb5 18. Bxe6 Qxb2 19. Qxb2 Bxb2 20. Rab1 fxe6 21. Rxb2 $11) 17. Qxe2 {[%emt 0:11:34]} Bxe5 {[%emt 0:00:27]} 18. Rfc1 {[%emt 0:02:54]} Bxb2 {[%emt 0:05:34]} (18... c6 $17 19. Bxe5 Rxe5) 19. Rxc7 $15 {[%emt 0:01:22] [#]} Qd8 {[%emt 0:11:44]} 20. Qxb2 $11 {[%emt 0:00:33]} Rb6 {[%emt 0:00:06][%cal Ob6b5] Hoping for ...Rxb5!} 21. Rac1 {[%emt 0:11:01][%cal Oa3a4]} Nd6 {[%emt 0:03:42]} 22. R7c5 {[%emt 0:02:39]} Ne4 {[%emt 0:07:38]} 23. Rc7 {[%emt 0:02:01][%cal Oa3a4]} h6 {[%emt 0:05:57]} 24. Qe2 {[%emt 0:03:32]} Qe8 {[%emt 0:04:21]} 25. a4 {[%emt 0:00:33]} Qe5 {[%emt 0:07:17]} 26. f3 {[%emt 0:02:12]} Nf6 {[%emt 0:00:36]} (26... Nd6 $11) 27. Rc8+ $14 {[%emt 0:00:56]} Rxc8 {[%emt 0:00:03]} 28. Rxc8+ {[%emt 0:00:05]} Kh7 {[%emt 0:00:03]} 29. Qd3+ {[%emt 0:00:09]} g6 {[%emt 0:00:09]} 30. Qd4 {[%emt 0:02:56] Against Qa1+} Qxd4 {[%emt 0:05:43]} 31. exd4 {[%emt 0:00:07][%mdl 4096] Endgame KRN-KRN} g5 {[%emt 0:00:07]} 32. Rc5 {[%emt 0:00:58]} Kg6 {[%emt 0:03:00]} 33. a5 {[%emt 0:00:40]} (33. Kf2 $5 {[%cal Ra4a5]}) 33... Re6 {[%emt 0:01:03]} 34. Nc7 {[%emt 0:01:41][%csl LRd5,LRe6]} Re1+ {[%emt 0:02:47]} 35. Kf2 {[%emt 0:00:04]} Rd1 {[%emt 0:00:03]} (35... Rb1 $11 {remains equal.}) 36. Nxd5 {[%emt 0:01:09]} (36. Rb5 $16 Rd2+ 37. Kf1 Rd1+ 38. Ke2) 36... Rxd4 {[%emt 0:01:22]} 37. Nxf6 {[%emt 0:03:01]} Kxf6 {[%emt 0:00:07] The position is equal.} 38. Rb5 {[%emt 0:00:05]} Rd2+ {[%emt 0:00:11]} 39. Kg3 {[%emt 0:00:14]} Ra2 {[%emt 0:00:17]} 40. Rb6+ {[%emt 0:00:22]} Kg7 {[%emt 0:00:06]} 41. Rxb7 {[%emt 0:00:06] Weighted Error Value: White=0.15 (very precise) /Black=0.19 (very precise)} 1/2-1/2